[Event "*** Titled Tuesday Blitz"]
[Site "Chess.com"]
[Date "2020.05.19"]
[Round "7"]
[White "archess2"]
[Black "Gerodot71"]
[Result "1/2-1/2"]
[WhiteElo "2283"]
[BlackElo "2405"]
[TimeControl "180+1"]
[EndTime "13:22:20 PDT"]
[Termination "Game drawn - insufficient material"]

1. d4 {[%clk 0:03:00.9]} 1... Nf6 {[%clk 0:02:59.8]} 2. c4 {[%clk 0:02:59.6]}
2... e6 {[%clk 0:02:59.7]} 3. Nc3 {[%clk 0:02:57.5]} 3... d5 {[%clk 0:02:59.2]}
4. cxd5 {[%clk 0:02:55.1]} 4... exd5 {[%clk 0:02:59.2]} 5. Bg5 {[%clk
0:02:51.1]} 5... Be7 {[%clk 0:02:59.7]} 6. e3 {[%clk 0:02:51.5]} 6... O-O {[%clk
0:02:57.8]} 7. Bd3 {[%clk 0:02:51.5]} 7... Re8 {[%clk 0:02:57.5]} 8. Bxf6 {[%clk
0:02:47.5]} 8... Bxf6 {[%clk 0:02:56.8]} 9. Qh5 {[%clk 0:02:47.1]} 9... g6
{[%clk 0:02:51.9]} 10. Qxd5 {[%clk 0:02:46.5]} 10... Bxd4 {[%clk 0:02:46.9]} 11.
Qxd8 {[%clk 0:02:36.9]} 11... Bxc3+ {[%clk 0:02:47]} 12. bxc3 {[%clk 0:02:37]}
12... Rxd8 {[%clk 0:02:47.5]} 13. Bc4 {[%clk 0:02:37.3]} 13... Bf5 {[%clk
0:02:30.5]} 14. Nf3 {[%clk 0:02:35.7]} 14... Nd7 {[%clk 0:02:28.9]} 15. O-O
{[%clk 0:02:30.7]} 15... Nb6 {[%clk 0:02:26.6]} 16. Bb3 {[%clk 0:02:30.4]} 16...
Kg7 {[%clk 0:02:15.9]} 17. Rfd1 {[%clk 0:02:26.5]} 17... c5 {[%clk 0:02:11.2]}
18. Nh4 {[%clk 0:02:20.8]} 18... Be4 {[%clk 0:02:06.2]} 19. f3 {[%clk
0:02:19.2]} 19... Bc6 {[%clk 0:02:05.4]} 20. Kf2 {[%clk 0:02:11.8]} 20... Kf6
{[%clk 0:02:01.6]} 21. f4 {[%clk 0:02:06.4]} 21... Be4 {[%clk 0:01:55.2]} 22. a4
{[%clk 0:02:01.4]} 22... c4 {[%clk 0:01:46.7]} 23. Ba2 {[%clk 0:01:58.9]} 23...
Rxd1 {[%clk 0:01:41.7]} 24. Rxd1 {[%clk 0:01:58.3]} 24... Nxa4 {[%clk
0:01:42.6]} 25. Bxc4 {[%clk 0:01:57.7]} 25... Nxc3 {[%clk 0:01:41.7]} 26. Rd7
{[%clk 0:01:57.5]} 26... Rf8 {[%clk 0:01:33.2]} 27. Nf3 {[%clk 0:01:54.1]} 27...
b5 {[%clk 0:01:26.2]} 28. Bb3 {[%clk 0:01:51.5]} 28... Bxf3 {[%clk 0:01:22.6]}
29. Kxf3 {[%clk 0:01:50.1]} 29... a5 {[%clk 0:01:22.5]} 30. e4 {[%clk
0:01:48.3]} 30... a4 {[%clk 0:01:18.7]} 31. e5+ {[%clk 0:01:48.4]} 31... Kg7
{[%clk 0:01:18.7]} 32. Bc2 {[%clk 0:01:48.5]} 32... b4 {[%clk 0:01:16]} 33. Rb7
{[%clk 0:01:43.9]} 33... b3 {[%clk 0:01:15.3]} 34. Bxb3 {[%clk 0:01:43.4]} 34...
axb3 {[%clk 0:01:16.2]} 35. Rxb3 {[%clk 0:01:43.5]} 35... Nd5 {[%clk 0:01:16]}
36. Ke4 {[%clk 0:01:43]} 36... Ne7 {[%clk 0:01:11.3]} 37. Rb7 {[%clk 0:01:42.4]}
37... Re8 {[%clk 0:01:08.3]} 38. g4 {[%clk 0:01:41.9]} 38... Nc8 {[%clk
0:01:05]} 39. Kd5 {[%clk 0:01:39.2]} 39... Kf8 {[%clk 0:00:58.7]} 40. f5 {[%clk
0:01:36.8]} 40... gxf5 {[%clk 0:00:49.5]} 41. gxf5 {[%clk 0:01:35.9]} 41... Ne7+
{[%clk 0:00:49.9]} 42. Ke4 {[%clk 0:01:35.7]} 42... Nc6 {[%clk 0:00:49.7]} 43.
Rb5 {[%clk 0:01:34.8]} 43... Kg7 {[%clk 0:00:48.9]} 44. Rc5 {[%clk 0:01:33.2]}
44... Nd8 {[%clk 0:00:35.6]} 45. Rc7 {[%clk 0:01:28.1]} 45... Kf8 {[%clk
0:00:32.7]} 46. Kd5 {[%clk 0:01:25.8]} 46... Re7 {[%clk 0:00:29.7]} 47. Rc8
{[%clk 0:01:25.5]} 47... Ke8 {[%clk 0:00:29.2]} 48. e6 {[%clk 0:01:24.5]} 48...
fxe6+ {[%clk 0:00:28.7]} 49. fxe6 {[%clk 0:01:24.7]} 49... Ra7 {[%clk
0:00:27.1]} 50. Kd6 {[%clk 0:01:23.3]} 50... Ra6+ {[%clk 0:00:26.8]} 51. Kd5
{[%clk 0:01:21.1]} 51... Ra2 {[%clk 0:00:24.4]} 52. h4 {[%clk 0:01:19.4]} 52...
Rh2 {[%clk 0:00:18.6]} 53. Kd6 {[%clk 0:01:12.7]} 53... Rd2+ {[%clk 0:00:09.3]}
54. Ke5 {[%clk 0:01:11.9]} 54... Re2+ {[%clk 0:00:10.2]} 55. Kf5 {[%clk
0:01:12]} 55... Rf2+ {[%clk 0:00:05.3]} 56. Kg5 {[%clk 0:01:11.4]} 56... Re2
{[%clk 0:00:05.1]} 57. Kf5 {[%clk 0:01:09.9]} 57... Ke7 {[%clk 0:00:04.9]} 58.
Rc7+ {[%clk 0:01:08.7]} 58... Ke8 {[%clk 0:00:05.1]} 59. Rxh7 {[%clk 0:01:08.6]}
59... Nxe6 {[%clk 0:00:04.8]} 60. Rh8+ {[%clk 0:01:06.7]} 60... Kf7 {[%clk
0:00:03.8]} 61. Ra8 {[%clk 0:01:05.3]} 61... Ng7+ {[%clk 0:00:04]} 62. Kg4
{[%clk 0:01:04.8]} 62... Re5 {[%clk 0:00:04.4]} 63. Ra7+ {[%clk 0:01:03.8]}
63... Kg6 {[%clk 0:00:04.8]} 64. Ra6+ {[%clk 0:01:03.3]} 64... Kh7 {[%clk
0:00:04.9]} 65. Ra7 {[%clk 0:01:01.5]} 65... Rb5 {[%clk 0:00:04.9]} 66. h5
{[%clk 0:01:01.3]} 66... Kh6 {[%clk 0:00:04.9]} 67. Ra6+ {[%clk 0:01:00.7]}
67... Kh7 {[%clk 0:00:05.2]} 68. h6 {[%clk 0:01:00.3]} 68... Rb4+ {[%clk
0:00:03.6]} 69. Kg5 {[%clk 0:00:59.1]} 69... Rb5+ {[%clk 0:00:03.9]} 70. Kf6
{[%clk 0:00:57.7]} 70... Kxh6 {[%clk 0:00:03.5]} 71. Kf7+ {[%clk 0:00:57.8]}
71... Kh7 {[%clk 0:00:03.8]} 72. Ra1 {[%clk 0:00:57.1]} 72... Rf5+ {[%clk
0:00:04.1]} 73. Ke7 {[%clk 0:00:57.2]} 73... Kg6 {[%clk 0:00:05]} 74. Rg1+
{[%clk 0:00:56.5]} 74... Kh7 {[%clk 0:00:05.4]} 75. Rh1+ {[%clk 0:00:56.7]}
75... Kg8 {[%clk 0:00:05.4]} 76. Ra1 {[%clk 0:00:56.2]} 76... Rf7+ {[%clk
0:00:06.3]} 77. Kd6 {[%clk 0:00:56.1]} 77... Nf5+ {[%clk 0:00:06.3]} 78. Ke5
{[%clk 0:00:56.2]} 78... Kg7 {[%clk 0:00:05.7]} 79. Rg1+ {[%clk 0:00:55.9]}
79... Kh6 {[%clk 0:00:05.5]} 80. Rf1 {[%clk 0:00:54.8]} 80... Re7+ {[%clk
0:00:04.2]} 81. Kf4 {[%clk 0:00:53.8]} 81... Rf7 {[%clk 0:00:04.1]} 82. Rh1+
{[%clk 0:00:53.6]} 82... Kg6 {[%clk 0:00:04.1]} 83. Ke5 {[%clk 0:00:53.6]} 83...
Re7+ {[%clk 0:00:03.7]} 84. Kd5 {[%clk 0:00:54]} 84... Kf6 {[%clk 0:00:04.6]}
85. Kc4 {[%clk 0:00:51.3]} 85... Re5 {[%clk 0:00:04.9]} 86. Ra1 {[%clk
0:00:50.3]} 86... Ke6 {[%clk 0:00:05.2]} 87. Ra6+ {[%clk 0:00:49.6]} 87... Nd6+
{[%clk 0:00:06.1]} 88. Kd3 {[%clk 0:00:49.9]} 88... Kd5 {[%clk 0:00:05.7]} 89.
Ra5+ {[%clk 0:00:49.1]} 89... Ke6 {[%clk 0:00:06]} 90. Rxe5+ {[%clk 0:00:49.2]}
90... Kxe5 {[%clk 0:00:06.9]} 1/2-1/2

[Event "*** Titled Tuesday Blitz"]
[Site "Chess.com"]
[Date "2020.05.19"]
[Round "7"]
[White "Lagmantr"]
[Black "MPGM"]
[Result "1-0"]
[WhiteElo "2680"]
[BlackElo "2528"]
[TimeControl "180+1"]
[EndTime "13:22:35 PDT"]
[Termination "Lagmantr won by resignation"]

1. e4 {[%clk 0:03:00.9]} 1... c6 {[%clk 0:02:59.2]} 2. d4 {[%clk 0:03:00.3]}
2... d5 {[%clk 0:03:00.1]} 3. Nc3 {[%clk 0:03:00.9]} 3... dxe4 {[%clk
0:02:59.1]} 4. Nxe4 {[%clk 0:03:01.8]} 4... Nf6 {[%clk 0:02:59.9]} 5. Nxf6+
{[%clk 0:03:01.5]} 5... exf6 {[%clk 0:03:00.8]} 6. c3 {[%clk 0:03:01.9]} 6...
Bd6 {[%clk 0:03:01.1]} 7. Bd3 {[%clk 0:03:02.3]} 7... O-O {[%clk 0:03:01.2]} 8.
Qc2 {[%clk 0:03:02.8]} 8... Re8+ {[%clk 0:03:01.6]} 9. Ne2 {[%clk 0:03:03.1]}
9... h5 {[%clk 0:03:02.2]} 10. Be3 {[%clk 0:03:03]} 10... Na6 {[%clk 0:03:01.7]}
11. O-O-O {[%clk 0:02:59.7]} 11... Nc7 {[%clk 0:03:01.9]} 12. h3 {[%clk
0:02:58.4]} 12... Nd5 {[%clk 0:03:02.4]} 13. Bd2 {[%clk 0:02:37.9]} 13... Qc7
{[%clk 0:03:02.2]} 14. g4 {[%clk 0:02:35.5]} 14... h4 {[%clk 0:02:54]} 15. g5
{[%clk 0:02:35]} 15... f5 {[%clk 0:02:52.1]} 16. Rhe1 {[%clk 0:02:23.2]} 16...
Bd7 {[%clk 0:02:35.8]} 17. Bxf5 {[%clk 0:02:18.2]} 17... b5 {[%clk 0:02:23.6]}
18. g6 {[%clk 0:02:08.3]} 18... f6 {[%clk 0:02:11.5]} 19. Ng1 {[%clk 0:01:55.3]}
19... Bf4 {[%clk 0:01:36.3]} 20. Bxd7 {[%clk 0:01:50.2]} 20... Qxd7 {[%clk
0:01:35]} 21. Kb1 {[%clk 0:01:25]} 21... Bxd2 {[%clk 0:01:30.5]} 22. Qxd2 {[%clk
0:01:18.1]} 22... Qf5+ {[%clk 0:01:27.7]} 23. Qc2 {[%clk 0:01:17.8]} 23... Qf4
{[%clk 0:01:28]} 24. c4 {[%clk 0:00:51.1]} 24... bxc4 {[%clk 0:01:25.3]} 25.
Rxe8+ {[%clk 0:00:31.5]} 25... Rxe8 {[%clk 0:01:24.5]} 26. Qxc4 {[%clk
0:00:31.8]} 26... Qf5+ {[%clk 0:01:11.8]} 27. Qc2 {[%clk 0:00:29.6]} 27... Qxc2+
{[%clk 0:01:07]} 28. Kxc2 {[%clk 0:00:30.5]} 28... Nf4 {[%clk 0:01:07.6]} 29.
Kd2 {[%clk 0:00:27.1]} 29... Nxg6 {[%clk 0:01:06.8]} 30. Rc1 {[%clk 0:00:26.6]}
30... Re4 {[%clk 0:00:57.6]} 31. Nf3 {[%clk 0:00:22.1]} 31... Ne7 {[%clk
0:00:55.1]} 32. Kd3 {[%clk 0:00:20.5]} 32... Rf4 {[%clk 0:00:54.8]} 33. Ke3
{[%clk 0:00:20.4]} 33... Nd5+ {[%clk 0:00:54.7]} 34. Ke2 {[%clk 0:00:20]} 34...
Re4+ {[%clk 0:00:50.1]} 35. Kf1 {[%clk 0:00:18.7]} 35... Nb4 {[%clk 0:00:44.8]}
36. a3 {[%clk 0:00:15.6]} 36... Nd3 {[%clk 0:00:44.5]} 37. Rxc6 {[%clk
0:00:13.7]} 37... Nxb2 {[%clk 0:00:42.8]} 38. d5 {[%clk 0:00:13.6]} 38... Kf7
{[%clk 0:00:37.7]} 39. Rc7+ {[%clk 0:00:13.3]} 39... Ke8 {[%clk 0:00:31.4]} 40.
Rxg7 {[%clk 0:00:11.6]} 40... Nc4 {[%clk 0:00:30.5]} 41. Rxa7 {[%clk 0:00:10.7]}
41... Rf4 {[%clk 0:00:22.3]} 42. Kg2 {[%clk 0:00:09.4]} 42... Kd8 {[%clk
0:00:08.3]} 43. Rh7 {[%clk 0:00:07.9]} 43... Nxa3 {[%clk 0:00:08]} 44. Rxh4
{[%clk 0:00:07.5]} 44... Rf5 {[%clk 0:00:06.8]} 45. Rd4 {[%clk 0:00:05.5]} 45...
Nb5 {[%clk 0:00:07.2]} 46. Rd3 {[%clk 0:00:05.5]} 46... Nc7 {[%clk 0:00:06.4]}
47. d6 {[%clk 0:00:04.1]} 47... Ne6 {[%clk 0:00:07]} 48. Nd4 {[%clk 0:00:03.9]}
48... Rg5+ {[%clk 0:00:06.6]} 49. Kf3 {[%clk 0:00:02.8]} 49... Ng7 {[%clk
0:00:04.5]} 50. h4 {[%clk 0:00:02]} 50... Rh5 {[%clk 0:00:03.3]} 51. Kg4 {[%clk
0:00:02.9]} 51... f5+ {[%clk 0:00:03.3]} 52. Kg3 {[%clk 0:00:02.8]} 52... Kd7
{[%clk 0:00:04.2]} 53. f4 {[%clk 0:00:02.8]} 53... Rh6 {[%clk 0:00:02.9]} 54.
Nf3 {[%clk 0:00:03]} 54... Rg6+ {[%clk 0:00:03]} 55. Kh3 {[%clk 0:00:03.2]}
55... Rxd6 {[%clk 0:00:03.8]} 56. Ne5+ {[%clk 0:00:04.1]} 56... Ke6 {[%clk
0:00:03.5]} 57. Rb3 {[%clk 0:00:04.2]} 57... Ne8 {[%clk 0:00:02.4]} 58. Rb7
{[%clk 0:00:03.5]} 58... Nf6 {[%clk 0:00:03.3]} 59. Rf7 {[%clk 0:00:03.4]} 59...
Ne4 {[%clk 0:00:03.5]} 60. Rf8 {[%clk 0:00:03]} 60... Ra6 {[%clk 0:00:03.3]} 61.
Re8+ {[%clk 0:00:02.4]} 61... Kf6 {[%clk 0:00:03.4]} 62. Rg8 {[%clk 0:00:03.3]}
62... Ra3+ {[%clk 0:00:03]} 63. Kh2 {[%clk 0:00:04.2]} 63... Ke6 {[%clk
0:00:02.5]} 64. Rg6+ {[%clk 0:00:03.6]} 64... Kd5 {[%clk 0:00:03.1]} 65. h5
{[%clk 0:00:04.5]} 65... Nd2 {[%clk 0:00:03.5]} 66. Rg2 {[%clk 0:00:04.8]} 66...
Nf3+ {[%clk 0:00:03.9]} 67. Nxf3 {[%clk 0:00:04.8]} 67... Rxf3 {[%clk
0:00:04.8]} 68. h6 {[%clk 0:00:05.7]} 68... Rxf4 {[%clk 0:00:05.3]} 69. Kh3
{[%clk 0:00:06.6]} 69... Rf1 {[%clk 0:00:03.9]} 70. h7 {[%clk 0:00:05.4]} 70...
Rh1+ {[%clk 0:00:03.3]} 71. Rh2 {[%clk 0:00:05.5]} 71... Rg1 {[%clk 0:00:03.1]}
72. h8=Q {[%clk 0:00:05.3]} 72... Ke4 {[%clk 0:00:04]} 73. Qh5 {[%clk
0:00:05.2]} 73... f4 {[%clk 0:00:02]} 74. Qh4 {[%clk 0:00:05.2]} 74... Kf3
{[%clk 0:00:01.5]} 75. Qh5+ {[%clk 0:00:05]} 75... Ke4 {[%clk 0:00:01.5]} 76.
Re2+ {[%clk 0:00:05.4]} 76... Kd3 {[%clk 0:00:01.4]} 77. Qe5 {[%clk 0:00:04.7]}
77... Rg3+ {[%clk 0:00:02.3]} 78. Kh4 {[%clk 0:00:04.8]} 78... Re3 {[%clk
0:00:02.9]} 79. Rxe3+ {[%clk 0:00:04.6]} 79... fxe3 {[%clk 0:00:03.8]} 80. Kg3
{[%clk 0:00:05.5]} 80... e2 {[%clk 0:00:04.7]} 81. Kf2 {[%clk 0:00:06.4]} 1-0

[Event "*** Titled Tuesday Blitz"]
[Site "Chess.com"]
[Date "2020.05.19"]
[Round "7"]
[White "Anton_Demchenko"]
[Black "GoltsevDmitry2000"]
[Result "0-1"]
[WhiteElo "2809"]
[BlackElo "2587"]
[TimeControl "180+1"]
[EndTime "13:22:38 PDT"]
[Termination "GoltsevDmitry2000 won by checkmate"]

1. e4 {[%clk 0:03:00.9]} 1... c6 {[%clk 0:02:58.6]} 2. d4 {[%clk 0:03:00.5]}
2... d5 {[%clk 0:02:59]} 3. e5 {[%clk 0:02:59.9]} 3... e6 {[%clk 0:02:56.9]} 4.
Nf3 {[%clk 0:02:58.9]} 4... Nd7 {[%clk 0:02:43.8]} 5. c3 {[%clk 0:02:57.5]} 5...
Ne7 {[%clk 0:02:41.8]} 6. Bd3 {[%clk 0:02:57.6]} 6... c5 {[%clk 0:02:41.4]} 7.
O-O {[%clk 0:02:56.9]} 7... Nc6 {[%clk 0:02:41.1]} 8. Re1 {[%clk 0:02:56.4]}
8... Be7 {[%clk 0:02:40.9]} 9. Be3 {[%clk 0:02:48.9]} 9... a6 {[%clk 0:02:36.7]}
10. Nbd2 {[%clk 0:02:48.6]} 10... b5 {[%clk 0:02:36.2]} 11. Nf1 {[%clk
0:02:47.3]} 11... c4 {[%clk 0:02:36.3]} 12. Bc2 {[%clk 0:02:47]} 12... b4 {[%clk
0:02:36.4]} 13. Qd2 {[%clk 0:02:38.6]} 13... a5 {[%clk 0:02:29.6]} 14. Ng3
{[%clk 0:02:32.5]} 14... g6 {[%clk 0:02:21.5]} 15. Bg5 {[%clk 0:02:22.3]} 15...
Bxg5 {[%clk 0:02:06.5]} 16. Nxg5 {[%clk 0:02:22.3]} 16... Qe7 {[%clk 0:02:05.9]}
17. Qf4 {[%clk 0:02:08.6]} 17... Ba6 {[%clk 0:01:59.6]} 18. h4 {[%clk
0:02:06.2]} 18... h6 {[%clk 0:01:48.3]} 19. Nf3 {[%clk 0:02:04.5]} 19... Kd8
{[%clk 0:01:44.8]} 20. h5 {[%clk 0:01:54.5]} 20... g5 {[%clk 0:01:43.7]} 21. Qd2
{[%clk 0:01:46.8]} 21... Kc7 {[%clk 0:01:42.4]} 22. Nh2 {[%clk 0:01:46.1]} 22...
Rhb8 {[%clk 0:01:35.8]} 23. Ng4 {[%clk 0:01:42.6]} 23... Qf8 {[%clk 0:01:23.6]}
24. f4 {[%clk 0:01:23.6]} 24... bxc3 {[%clk 0:01:18.4]} 25. bxc3 {[%clk
0:01:23.6]} 25... Qg7 {[%clk 0:01:16.9]} 26. f5 {[%clk 0:01:23.2]} 26... Rb2
{[%clk 0:01:11]} 27. a4 {[%clk 0:01:23.5]} 27... Rab8 {[%clk 0:01:10.5]} 28.
Reb1 {[%clk 0:01:20.1]} 28... Qf8 {[%clk 0:01:03.1]} 29. Rxb2 {[%clk 0:01:14.5]}
29... Rxb2 {[%clk 0:01:04]} 30. Qc1 {[%clk 0:01:15.4]} 30... Rb8 {[%clk
0:01:01.5]} 31. Rb1 {[%clk 0:01:07.4]} 31... Rxb1 {[%clk 0:00:59.2]} 32. Bxb1
{[%clk 0:01:08.3]} 32... Ne7 {[%clk 0:00:51]} 33. f6 {[%clk 0:01:05.6]} 33...
Ng8 {[%clk 0:00:39.7]} 34. Bh7 {[%clk 0:01:02.4]} 34... Nb6 {[%clk 0:00:37.1]}
35. Bc2 {[%clk 0:00:57.5]} 35... Bb7 {[%clk 0:00:33.9]} 36. Qa1 {[%clk
0:00:45.3]} 36... Bc6 {[%clk 0:00:33]} 37. Kh2 {[%clk 0:00:37.7]} 37... Kb7
{[%clk 0:00:30.4]} 38. Nf1 {[%clk 0:00:23.9]} 38... Ka6 {[%clk 0:00:22]} 39. Ng3
{[%clk 0:00:21.6]} 39... Kb7 {[%clk 0:00:12.8]} 40. Bh7 {[%clk 0:00:21.3]} 40...
Ka6 {[%clk 0:00:10.7]} 41. Bxg8 {[%clk 0:00:21.4]} 41... Qxg8 {[%clk 0:00:11.6]}
42. Nxh6 {[%clk 0:00:22]} 42... Qh7 {[%clk 0:00:12]} 43. Ng4 {[%clk 0:00:21]}
43... Bxa4 {[%clk 0:00:12.2]} 44. Kh3 {[%clk 0:00:16.9]} 44... Bb3 {[%clk
0:00:11.6]} 45. Qa3 {[%clk 0:00:17]} 45... a4 {[%clk 0:00:12.1]} 46. Qe7 {[%clk
0:00:15.4]} 46... Bd1 {[%clk 0:00:10.8]} 47. h6 {[%clk 0:00:12.9]} 47... Bxg4+
{[%clk 0:00:10.2]} 48. Kxg4 {[%clk 0:00:13.8]} 48... Qxh6 {[%clk 0:00:09.3]} 49.
Nh5 {[%clk 0:00:04.2]} 49... Qg6 {[%clk 0:00:09.1]} 50. Ng3 {[%clk 0:00:04.7]}
50... Qh6 {[%clk 0:00:07.3]} 51. Kf3 {[%clk 0:00:05.2]} 51... Qg6 {[%clk
0:00:06.5]} 52. Kf2 {[%clk 0:00:05.7]} 52... Qc2+ {[%clk 0:00:06.6]} 53. Ne2
{[%clk 0:00:06.1]} 53... Qf5+ {[%clk 0:00:06.5]} 54. Kg1 {[%clk 0:00:04.3]}
54... Qg6 {[%clk 0:00:06.6]} 55. Qe8 {[%clk 0:00:03.4]} 55... a3 {[%clk
0:00:06.3]} 56. Qe7 {[%clk 0:00:03.9]} 56... Qb1+ {[%clk 0:00:06]} 57. Kf2
{[%clk 0:00:04.4]} 57... a2 {[%clk 0:00:06.9]} 58. Qa3+ {[%clk 0:00:03.6]} 58...
Kb5 {[%clk 0:00:06.3]} 59. Qf8 {[%clk 0:00:02.4]} 59... a1=Q {[%clk 0:00:06.5]}
60. Qe8+ {[%clk 0:00:02.9]} 60... Ka6 {[%clk 0:00:07]} 61. Qxf7 {[%clk
0:00:03.4]} 61... Qf1+ {[%clk 0:00:06.9]} 62. Kg3 {[%clk 0:00:04]} 62... Qae1+
{[%clk 0:00:05.7]} 63. Kg4 {[%clk 0:00:03.5]} 63... Qexe2+ {[%clk 0:00:06.1]}
64. Kxg5 {[%clk 0:00:04.4]} 64... Qexg2+ {[%clk 0:00:06.5]} 65. Kh6 {[%clk
0:00:05.2]} 65... Qfh1+ {[%clk 0:00:07]} 66. Qh5 {[%clk 0:00:05.6]} 66... Qxh5+
{[%clk 0:00:07.3]} 67. Kxh5 {[%clk 0:00:06.5]} 67... Qf3+ {[%clk 0:00:07.8]} 68.
Kg6 {[%clk 0:00:06.7]} 68... Qxc3 {[%clk 0:00:08.3]} 69. f7 {[%clk 0:00:07.1]}
69... Qf3 {[%clk 0:00:08.7]} 70. Kg7 {[%clk 0:00:07.3]} 70... c3 {[%clk
0:00:09.2]} 71. Kh8 {[%clk 0:00:07.2]} 71... c2 {[%clk 0:00:08.9]} 72. Kh7
{[%clk 0:00:06.1]} 72... Qxf7+ {[%clk 0:00:08.4]} 73. Kh8 {[%clk 0:00:06.2]}
73... Qf8+ {[%clk 0:00:08.5]} 74. Kh7 {[%clk 0:00:06.5]} 74... c1=Q {[%clk
0:00:08.8]} 75. Kg6 {[%clk 0:00:07.4]} 75... Qch6# {[%clk 0:00:09.2]} 0-1

[Event "*** Titled Tuesday Blitz"]
[Site "Chess.com"]
[Date "2020.05.19"]
[Round "7"]
[White "Gordima"]
[Black "gena217"]
[Result "0-1"]
[WhiteElo "2782"]
[BlackElo "2873"]
[TimeControl "180+1"]
[EndTime "13:22:47 PDT"]
[Termination "gena217 won on time"]

1. d4 {[%clk 0:03:00.9]} 1... Nf6 {[%clk 0:02:58.5]} 2. c4 {[%clk 0:03:01.2]}
2... e6 {[%clk 0:02:57.9]} 3. Nc3 {[%clk 0:03:01.8]} 3... Bb4 {[%clk 0:02:57.8]}
4. Qc2 {[%clk 0:03:02.3]} 4... O-O {[%clk 0:02:57.6]} 5. Nf3 {[%clk 0:03:01.5]}
5... c5 {[%clk 0:02:55.8]} 6. dxc5 {[%clk 0:03:02.4]} 6... Na6 {[%clk
0:02:55.6]} 7. g3 {[%clk 0:03:03]} 7... Nxc5 {[%clk 0:02:55.2]} 8. Bg2 {[%clk
0:03:03.6]} 8... b6 {[%clk 0:02:54]} 9. O-O {[%clk 0:03:03.8]} 9... Bb7 {[%clk
0:02:54.3]} 10. Nb5 {[%clk 0:03:04.4]} 10... Be4 {[%clk 0:02:54.1]} 11. Qd1
{[%clk 0:03:05]} 11... Nb7 {[%clk 0:02:54.4]} 12. Bf4 {[%clk 0:03:05.6]} 12...
a6 {[%clk 0:02:45.3]} 13. Nd6 {[%clk 0:02:55.1]} 13... Nxd6 {[%clk 0:02:44.5]}
14. Bxd6 {[%clk 0:02:56]} 14... Bxd6 {[%clk 0:02:45.2]} 15. Qxd6 {[%clk
0:02:55.5]} 15... Qb8 {[%clk 0:02:45.8]} 16. Rfd1 {[%clk 0:02:52.9]} 16... Qb7
{[%clk 0:02:39.1]} 17. Rac1 {[%clk 0:02:46.2]} 17... Rac8 {[%clk 0:02:37.7]} 18.
b3 {[%clk 0:02:37]} 18... h6 {[%clk 0:02:33.5]} 19. Ne1 {[%clk 0:02:33.8]} 19...
Bxg2 {[%clk 0:02:31.8]} 20. Nxg2 {[%clk 0:02:34.7]} 20... Rc6 {[%clk 0:02:31.5]}
21. Qd4 {[%clk 0:02:31.5]} 21... d5 {[%clk 0:02:26.4]} 22. Ne3 {[%clk 0:02:27]}
22... Rfc8 {[%clk 0:02:23.2]} 23. Rb1 {[%clk 0:02:27]} 23... dxc4 {[%clk
0:01:59.6]} 24. Nxc4 {[%clk 0:02:16.5]} 24... Qc7 {[%clk 0:01:59.8]} 25. a4
{[%clk 0:02:06.6]} 25... b5 {[%clk 0:01:35.4]} 26. axb5 {[%clk 0:02:07.5]} 26...
axb5 {[%clk 0:01:36]} 27. Ne3 {[%clk 0:01:44.8]} 27... Rc3 {[%clk 0:01:26.2]}
28. Rd3 {[%clk 0:01:33.7]} 28... Rxd3 {[%clk 0:01:20.4]} 29. Qxd3 {[%clk
0:01:34.6]} 29... Qc5 {[%clk 0:01:20]} 30. Rd1 {[%clk 0:01:30.1]} 30... Qb4
{[%clk 0:01:16.5]} 31. Ra1 {[%clk 0:00:57.8]} 31... Qc3 {[%clk 0:01:10.3]} 32.
Rd1 {[%clk 0:00:43.3]} 32... b4 {[%clk 0:01:04.3]} 33. Nc4 {[%clk 0:00:31.5]}
33... Nd5 {[%clk 0:00:52.9]} 34. e4 {[%clk 0:00:31.3]} 34... Qxd3 {[%clk
0:00:51.4]} 35. Rxd3 {[%clk 0:00:32.2]} 35... Nc3 {[%clk 0:00:51.6]} 36. Nd6
{[%clk 0:00:23.7]} 36... Ra8 {[%clk 0:00:45.1]} 37. Kg2 {[%clk 0:00:20.3]} 37...
Ra3 {[%clk 0:00:43.7]} 38. Rd4 {[%clk 0:00:19.4]} 38... Rxb3 {[%clk 0:00:42.1]}
39. Rc4 {[%clk 0:00:20]} 39... Rb2 {[%clk 0:00:24.4]} 40. Rc8+ {[%clk 0:00:20]}
40... Kh7 {[%clk 0:00:24.7]} 41. h4 {[%clk 0:00:19.6]} 41... Rd2 {[%clk
0:00:13.2]} 42. Nxf7 {[%clk 0:00:15.5]} 42... Nxe4 {[%clk 0:00:13]} 43. Ne5
{[%clk 0:00:05.5]} 43... Rxf2+ {[%clk 0:00:12]} 44. Kh3 {[%clk 0:00:05.8]} 44...
b3 {[%clk 0:00:08.8]} 45. h5 {[%clk 0:00:04.9]} 45... Nf6 {[%clk 0:00:08.2]} 46.
Rb8 {[%clk 0:00:02.8]} 46... Nxh5 {[%clk 0:00:05.8]} 47. Rxb3 {[%clk 0:00:01.5]}
47... Nf6 {[%clk 0:00:06.5]} 48. Ng4 {[%clk 0:00:01.7]} 48... Nxg4 {[%clk
0:00:06.3]} 49. Kxg4 {[%clk 0:00:02.6]} 49... Rf6 {[%clk 0:00:05.6]} 50. Re3
{[%clk 0:00:03.1]} 50... Kg6 {[%clk 0:00:06.1]} 51. Kh4 {[%clk 0:00:03.5]} 51...
Kf7 {[%clk 0:00:06.7]} 52. Kg4 {[%clk 0:00:03.8]} 52... Rf5 {[%clk 0:00:07.2]}
53. Rb3 {[%clk 0:00:03.7]} 53... Kf6 {[%clk 0:00:07.6]} 54. Rb4 {[%clk
0:00:03.7]} 54... g6 {[%clk 0:00:07.8]} 55. Rb8 {[%clk 0:00:03.3]} 55... h5+
{[%clk 0:00:06.9]} 56. Kh3 {[%clk 0:00:03.7]} 56... Rd5 {[%clk 0:00:07.1]} 57.
Rf8+ {[%clk 0:00:03.1]} 57... Kg5 {[%clk 0:00:07.6]} 58. Rf4 {[%clk 0:00:03.1]}
58... Re5 {[%clk 0:00:07.8]} 59. Ra4 {[%clk 0:00:03.1]} 59... Re1 {[%clk
0:00:07.9]} 60. Rb4 {[%clk 0:00:03.6]} 60... e5 {[%clk 0:00:08.3]} 61. Kg2
{[%clk 0:00:03]} 61... Kf5 {[%clk 0:00:07.4]} 62. Rb8 {[%clk 0:00:02.6]} 62...
Ra1 {[%clk 0:00:05]} 63. Rf8+ {[%clk 0:00:02.3]} 63... Kg5 {[%clk 0:00:05.7]}
64. Rf2 {[%clk 0:00:02.1]} 64... e4 {[%clk 0:00:04.7]} 65. Re2 {[%clk
0:00:02.2]} 65... Kf5 {[%clk 0:00:05.3]} 66. Rf2+ {[%clk 0:00:02.3]} 66... Ke5
{[%clk 0:00:05.2]} 67. Re2 {[%clk 0:00:02.3]} 67... Ra3 {[%clk 0:00:05]} 68. Rb2
{[%clk 0:00:02]} 68... Rd3 {[%clk 0:00:04.6]} 69. Rb8 {[%clk 0:00:02.1]} 69...
Kd4 {[%clk 0:00:04.6]} 70. Rd8+ {[%clk 0:00:02]} 70... Ke3 {[%clk 0:00:05]} 71.
Rg8 {[%clk 0:00:02.9]} 71... Rd6 {[%clk 0:00:05.3]} 72. Re8 {[%clk 0:00:03.2]}
72... Kd3 {[%clk 0:00:05.5]} 73. Kf2 {[%clk 0:00:03.4]} 73... Rf6+ {[%clk
0:00:05.9]} 74. Ke1 {[%clk 0:00:04]} 74... Ke3 {[%clk 0:00:06.6]} 75. Ra8 {[%clk
0:00:02.9]} 75... Kf3 {[%clk 0:00:07]} 76. Ra3+ {[%clk 0:00:03.5]} 76... e3
{[%clk 0:00:07.6]} 77. Ra5 {[%clk 0:00:02.7]} 77... Kxg3 {[%clk 0:00:07.5]} 78.
Ke2 {[%clk 0:00:03.2]} 78... Kf4 {[%clk 0:00:04.9]} 79. Ra4+ {[%clk 0:00:03.1]}
79... Kg5 {[%clk 0:00:05.3]} 80. Kxe3 {[%clk 0:00:03.4]} 80... Rf5 {[%clk
0:00:05.9]} 81. Ra1 {[%clk 0:00:03.2]} 81... h4 {[%clk 0:00:06.4]} 82. Rg1+
{[%clk 0:00:03.6]} 82... Kh5 {[%clk 0:00:07]} 83. Ke4 {[%clk 0:00:04.2]} 83...
Rf8 {[%clk 0:00:07.1]} 84. Rb1 {[%clk 0:00:02.7]} 84... g5 {[%clk 0:00:07.5]}
85. Rb7 {[%clk 0:00:03.1]} 85... h3 {[%clk 0:00:07.4]} 86. Ke3 {[%clk
0:00:02.8]} 86... Kg4 {[%clk 0:00:07.4]} 87. Rh7 {[%clk 0:00:02.9]} 87... Kg3
{[%clk 0:00:07.8]} 88. Ke2 {[%clk 0:00:03.8]} 88... g4 {[%clk 0:00:08.3]} 89.
Ke1 {[%clk 0:00:04.2]} 89... Kg2 {[%clk 0:00:08.5]} 90. Ra7 {[%clk 0:00:04.7]}
90... g3 {[%clk 0:00:09]} 91. Ra2+ {[%clk 0:00:05.6]} 91... Rf2 {[%clk
0:00:08.9]} 92. Ra3 {[%clk 0:00:05.6]} 92... h2 {[%clk 0:00:09.3]} 93. Rxg3+
{[%clk 0:00:06.2]} 93... Kxg3 {[%clk 0:00:10.2]} 0-1